bitfinex-derivatives/quotes_BNBF0:USTF0_20251027
["timestamp","ask_amount","ask_price","bid_price","bid_amount"]
[1761573197379,2.0962383,1157.1,1153.8,0.55437382]
[1761573197576,2.0962383,1157.1,1153.5,0.64425293]
[1761573197874,2.0962383,1157.1,1153.6,0.55427739]
[1761573198077,2.0962383,1157.1,1153.7,0.55427739]
[1761573198275,2.0962383,1157.7,1153.8,0.55427739]
[1761573198474,2.0962383,1157.7,1153.3,0.64425293]
[1761573198675,2.0962383,1157.7,1153.4,0.55421388]
[1761573198980,2.9234289,1158.2,1152.9,0.64425293]
[1761573199176,2.9234289,1157.4,1153.0,0.55438618]
[1761573199476,2.0962383,1156.9,1153.1,0.55438618]
[1761573199675,2.0962383,1156.9,1153.2,0.55438618]
[1761573199879,2.0962383,1156.9,1153.3,0.55438618]
[1761573200080,2.0962383,1156.9,1152.9,0.64425293]
[1761573200281,2.0962383,1157.1,1153.0,0.55396915]
[1761573200480,2.0962383,1157.1,1152.9,0.64425293]
[1761573200481,2.0962383,1157.1,1153.1,0.55396915]
[1761573200778,2.0962383,1157.0,1153.2,0.55396915]
[1761573200981,2.0962383,1157.0,1152.8,0.64425293]
[1761573201282,2.0962383,1157.1,1152.9,0.54965853]
[1761573201577,2.0962383,1157.1,1153.0,0.54965853]
[1761573201778,5.0196672,1157.5,1153.1,0.54965853]
[1761573201982,5.0196672,1157.5,1153.2,0.54965853]
[1761573202180,2.0962383,1157.5,1153.3,0.54965853]
[1761573202381,2.0962383,1157.5,1152.8,0.64425293]
[1761573202579,2.0962383,1157.5,1152.9,0.54922749]
[1761573202782,1.243379,1156.1,1153.0,0.54922749]
[1761573202980,1.243379,1156.0,1153.1,0.54922749]
[1761573203185,1.243379,1156.0,1152.7,0.64425293]
[1761573203384,1.243379,1156.0,1152.8,0.5460401]
[1761573203580,1.243379,1156.0,1152.9,0.5460401]
[1761573203780,1.243379,1155.9,1153.0,0.5460401]
[1761573203983,1.243379,1155.9,1153.1,0.5460401]
[1761573204182,1.243379,1155.9,1152.7,0.64425293]
[1761573204385,1.243379,1156.0,1152.8,1.19011266]
[1761573204585,1.243379,1156.4,1152.9,0.54585973]
[1761573204780,1.243379,1156.4,1153.0,0.54585973]
[1761573205082,1.243379,1156.4,1153.1,0.54585973]
[1761573205288,1.243379,1156.4,1153.2,0.54585973]
[1761573205586,1.243379,1156.5,1152.7,0.64425293]
[1761573205885,1.243379,1156.5,1152.8,0.54567279]
[1761573206185,1.243379,1156.6,1152.9,0.54567279]
[1761573206484,1.243379,1156.6,1153.0,0.54567279]
[1761573206685,1.243379,1156.6,1153.1,0.54567279]
[1761573206885,1.243379,1156.6,1153.2,0.54567279]
[1761573207085,1.243379,1156.6,1152.5,0.64425293]
[1761573207382,1.243379,1156.7,1152.6,0.54536766]
[1761573207581,1.243379,1156.7,1152.7,0.54536766]
[1761573207881,1.243379,1156.7,1152.8,0.54536766]
[1761573208084,1.243379,1156.7,1152.9,0.54536766]
[1761573208281,1.243379,1156.7,1153.0,0.54536766]
[1761573208482,1.243379,1156.5,1153.1,0.54536766]
[1761573208685,1.243379,1156.5,1152.6,0.64425293]
[1761573208686,1.243379,1156.5,1153.2,0.54520676]
[1761573208886,1.243379,1156.5,1152.6,0.64425293]
[1761573209087,1.243379,1156.5,1152.7,0.54520676]
[1761573209285,1.243379,1156.3,1152.7,1.18945969]
[1761573209488,1.243379,1156.2,1152.9,0.64425293]
[1761573209689,1.243379,1156.3,1153.0,1.18945969]
[1761573209985,1.243379,1156.3,1153.1,0.54520676]
[1761573210186,1.243379,1156.3,1153.2,0.54520676]
[1761573210387,1.243379,1156.3,1153.3,0.54520676]
[1761573210585,1.243379,1156.3,1152.9,0.64425293]
[1761573210782,1.243379,1156.5,1153.0,0.54491741]
[1761573210989,1.243379,1156.5,1153.1,0.54491741]
[1761573211189,1.243379,1156.5,1152.9,0.64425293]
[1761573211190,1.243379,1156.5,1153.2,0.54491741]
[1761573211390,1.243379,1156.5,1153.3,0.54491741]
[1761573211690,1.243379,1156.5,1152.9,0.64425293]
[1761573211890,1.243379,1156.5,1153.0,0.54487549]
[1761573212085,1.243379,1156.5,1153.1,0.54487549]
[1761573212290,1.243379,1156.5,1153.2,0.54487549]
[1761573212486,1.243379,1156.5,1153.3,0.54487549]
[1761573212690,1.243379,1156.5,1152.8,0.64425293]
[1761573212986,1.243379,1156.6,1152.9,1.18909331]
[1761573213188,1.243379,1156.6,1153.0,0.54484038]
[1761573213387,1.243379,1156.6,1153.1,0.54484038]
[1761573213588,1.243379,1156.6,1153.2,0.54484038]
[1761573213789,1.243379,1156.6,1153.3,0.54484038]
[1761573213988,1.243379,1156.6,1153.4,0.54484038]
[1761573214287,1.243379,1156.6,1152.9,0.64425293]
[1761573214486,1.243379,1156.6,1153.0,0.54470717]
[1761573214688,1.243379,1156.6,1153.1,0.54470717]
[1761573214889,1.243379,1156.6,1153.2,0.54470717]
[1761573215088,1.243379,1156.6,1153.3,0.54470717]
[1761573215290,1.243379,1156.6,1153.4,0.54470717]
[1761573215493,1.243379,1156.6,1152.9,0.64425293]
[1761573215693,1.243379,1156.7,1153.0,0.54464457]
[1761573215993,1.243379,1156.7,1153.1,0.54464457]
[1761573216189,1.243379,1156.7,1153.2,0.54464457]
[1761573216489,1.243379,1156.6,1153.3,0.54464457]
[1761573216694,1.243379,1156.7,1153.4,0.54464457]
[1761573216891,1.243379,1156.7,1153.5,0.54464457]
[1761573217190,1.243379,1156.7,1153.2,0.64425293]
[1761573217191,1.243379,1156.7,1153.6,0.54464457]
[1761573217390,1.243379,1156.7,1153.2,0.64425293]
[1761573217596,1.243379,1156.6,1153.3,0.54445078]
[1761573217894,1.243379,1156.7,1153.4,0.54445078]
[1761573218195,1.243379,1156.6,1153.5,0.54445078]
[1761573218391,1.243379,1156.7,1153.2,0.64425293]
[1761573218694,1.243379,1156.6,1153.3,0.54447912]
[1761573218891,1.243379,1156.6,1152.9,0.64425293]
[1761573219095,1.243379,1156.8,1153.0,0.54454583]
[1761573219290,1.243379,1156.8,1153.1,0.54454583]
[1761573219592,1.243379,1156.8,1153.2,0.54454583]
[1761573219796,1.243379,1156.9,1153.3,0.54454583]
[1761573219997,1.243379,1156.8,1152.7,0.64425293]
[1761573220297,1.243379,1156.8,1152.8,0.54453078]
[1761573220497,1.243379,1156.5,1153.0,0.64425293]
[1761573220693,1.243379,1156.6,1153.1,1.18878371]
[1761573220895,1.243379,1157.4,1153.3,0.64425293]
[1761573221093,1.243379,1157.3,1153.4,0.54453078]
[1761573221293,1.243379,1157.2,1153.5,0.54453078]
[1761573221596,1.243379,1157.1,1153.6,0.54453078]
[1761573221796,1.243379,1157.1,1153.1,0.64425293]
[1761573221996,1.243379,1157.1,1153.2,0.54442488]
[1761573222197,1.243379,1157.1,1153.3,0.54442488]
[1761573222398,1.243379,1157.1,1153.4,0.54442488]
[1761573222598,1.243379,1157.1,1153.5,0.54442488]
[1761573222899,1.243379,1157.1,1153.6,0.54442488]
[1761573223097,1.243379,1157.2,1153.7,0.54442488]
[1761573223297,1.243379,1157.1,1153.1,0.64425293]
[1761573223501,1.243379,1157.1,1153.2,0.54460581]
[1761573223697,1.243379,1156.9,1153.3,0.54460581]
[1761573223899,1.243379,1156.6,1153.4,0.54460581]
[1761573224194,1.243379,1156.6,1153.5,0.54460581]
[1761573224399,1.243379,1156.6,1153.2,0.64425293]
[1761573224598,1.243379,1156.6,1153.3,0.54472989]
[1761573224796,1.243379,1156.6,1151.9,2.082315]
[1761573224797,1.243379,1156.6,1153.4,0.54472989]
[1761573224996,1.243379,1156.6,1153.5,0.54472989]
[1761573225197,1.243379,1156.5,1153.0,0.64425293]
[1761573225396,1.243379,1156.5,1153.1,0.54487324]
[1761573225696,1.243379,1156.5,1153.2,0.54487324]
[1761573225896,1.243379,1156.3,1152.9,0.64425293]
[1761573226098,1.243379,1156.3,1153.0,0.5449444]
[1761573226298,1.243379,1156.3,1153.1,0.5449444]
[1761573226499,1.243379,1156.3,1153.2,0.5449444]
[1761573226702,1.243379,1156.3,1152.9,0.64425293]
[1761573227003,1.243379,1156.3,1153.0,0.54501879]
[1761573227203,1.243379,1156.3,1153.1,0.54501879]
[1761573227403,1.243379,1156.3,1153.2,0.54501879]
[1761573227603,1.243379,1156.3,1152.9,0.64425293]
[1761573227904,1.243379,1156.3,1153.0,0.54514092]
[1761573228100,1.243379,1156.3,1153.1,0.54514092]
[1761573228304,1.243379,1156.3,1153.2,0.54514092]
[1761573228600,1.243379,1156.3,1153.3,0.54514092]
[1761573228803,1.243379,1156.4,1152.8,0.64425293]
[1761573229005,1.243379,1156.4,1152.9,0.54521561]
[1761573229202,1.243379,1156.4,1152.9,1.18946854]
[1761573229407,1.243379,1156.4,1153.0,0.54521561]
[1761573229700,2.0962383,1157.4,1153.0,0.54521561]
[1761573229701,1.243379,1156.5,1153.0,0.54521561]
[1761573229905,1.243379,1156.5,1153.1,0.54521561]
[1761573230204,1.243379,1156.4,1153.2,0.54521561]
[1761573230405,1.243379,1156.4,1153.3,0.54521561]
[1761573230603,1.243379,1156.4,1152.9,0.64425293]
[1761573230802,1.243379,1156.4,1153.0,0.54569792]
[1761573231007,1.243379,1156.4,1153.1,0.54569792]
[1761573231207,1.243379,1156.4,1153.2,0.54569792]
[1761573231507,1.243379,1156.3,1153.3,0.54569792]
[1761573231905,1.243379,1156.3,1153.4,0.54569792]
[1761573232108,1.243379,1156.3,1153.5,0.54569792]
[1761573232406,1.243379,1156.3,1153.1,0.64425293]
[1761573232407,1.243379,1156.2,1153.2,0.64425293]
[1761573232607,2.9234289,1157.5,1153.3,0.54671396]
[1761573232608,1.243379,1156.3,1153.3,0.54671396]
[1761573232806,1.243379,1156.3,1153.4,0.54671396]
[1761573233003,1.243379,1156.3,1153.5,0.54671396]
[1761573233203,1.243379,1156.2,1153.6,0.54701268]
[1761573233407,1.243379,1156.2,1153.2,0.64425293]
[1761573233608,1.243379,1156.2,1153.3,0.54701286]
[1761573233809,1.243379,1156.2,1153.4,0.54701286]
[1761573234011,1.243379,1156.5,1152.8,0.64425293]
[1761573234305,4.176327,1158.2,1152.9,0.54711003]
[1761573234306,1.243379,1156.4,1152.9,0.54711003]
[1761573234508,1.243379,1156.4,1153.0,0.54711003]
[1761573234808,1.243379,1156.4,1153.1,0.54711003]
[1761573235008,1.243379,1156.4,1153.2,0.54711003]
[1761573235212,1.243379,1156.2,1153.3,0.54711003]
[1761573235404,1.243379,1156.2,1153.4,0.54711003]
[1761573235603,1.243379,1156.4,1153.5,0.54711003]
[1761573235807,1.243379,1156.4,1152.8,0.64425293]
[1761573236104,1.243379,1156.4,1152.9,0.54887828]
[1761573236310,1.243379,1155.8,1153.2,0.64425293]
[1761573236606,1.243379,1155.8,1153.3,0.54887828]
[1761573236804,1.243379,1155.8,1153.4,0.54887828]
[1761573237011,1.243379,1155.7,1153.5,0.54887828]
[1761573237218,1.243379,1155.6,1153.6,0.54887828]
[1761573237416,1.243379,1155.7,1153.1,0.64425293]
[1761573237619,1.243379,1155.7,1153.2,0.54987851]
[1761573237813,1.243379,1155.7,1153.3,0.54987851]
[1761573238013,1.243379,1155.7,1153.4,0.54987851]
[1761573238316,1.243379,1155.5,1153.5,0.54987851]
[1761573238518,1.243379,1155.6,1153.0,0.64425293]
[1761573238717,1.243379,1155.6,1153.1,0.55025259]
[1761573238914,1.243379,1155.6,1153.2,0.55025259]
[1761573239114,1.243379,1155.5,1153.3,0.55025259]
[1761573239315,1.243379,1155.5,1153.4,0.55025259]
[1761573239518,1.243379,1155.5,1153.5,0.55025259]
[1761573239816,1.243379,1155.5,1153.0,0.64425293]
[1761573240115,1.243379,1155.5,1153.1,0.55061881]
[1761573240415,1.243379,1155.5,1153.2,0.55061881]
[1761573240614,1.243379,1155.7,1153.3,0.55061881]
[1761573240816,1.243379,1155.7,1153.4,0.55061881]
[1761573241115,1.243379,1155.7,1153.5,0.55061881]
[1761573241313,1.243379,1155.6,1152.9,0.64425293]
[1761573241516,1.243379,1155.5,1153.0,0.5511834]
[1761573241715,1.243379,1155.0,1153.1,0.5511834]
[1761573242018,1.243379,1155.0,1153.2,0.5511834]
[1761573242220,1.243379,1154.9,1153.3,0.5511834]
[1761573242420,1.243379,1154.9,1152.9,0.64425293]
[1761573242720,1.243379,1154.9,1153.0,0.55162129]
[1761573242919,1.243379,1154.9,1152.9,0.64425293]
[1761573242920,1.243379,1154.9,1153.1,0.55162129]
[1761573243120,1.243379,1154.9,1153.2,0.55162129]
[1761573243417,1.243379,1154.9,1153.3,0.55162129]
[1761573243615,1.243379,1154.9,1152.9,0.64425293]
[1761573243820,1.243379,1154.9,1153.0,0.55180887]
[1761573244024,1.243379,1154.9,1153.1,0.55180887]
[1761573244221,1.243379,1154.9,1153.2,0.55180887]
[1761573244421,1.243379,1154.8,1153.3,0.55180887]
[1761573244620,2.0962383,1155.7,1152.6,1.249389]
[1761573244621,1.243379,1155.2,1153.4,0.55180887]
[1761573244822,1.243379,1155.2,1152.9,0.64425293]
[1761573245026,1.243379,1155.2,1153.0,0.55219801]
[1761573245226,1.243379,1155.2,1153.1,0.55219801]
[1761573245525,1.243379,1155.2,1153.2,0.55219801]
[1761573245825,1.243379,1155.2,1153.3,0.55219801]
[1761573246023,1.243379,1155.2,1153.4,0.55219801]
[1761573246327,1.243379,1155.2,1152.9,0.64425293]
[1761573246622,1.243379,1155.2,1153.0,0.55229099]
[1761573246927,1.243379,1155.3,1153.1,0.55229099]
[1761573247223,1.243379,1155.3,1153.2,0.55229099]
[1761573247420,1.243379,1155.3,1153.3,0.55229099]
[1761573247727,1.243379,1155.3,1152.6,0.64425293]
[1761573247926,1.243379,1155.3,1152.7,1.19648032]
[1761573248222,1.243379,1155.3,1152.8,0.55222739]
[1761573248422,1.243379,1155.3,1152.9,0.55222739]
[1761573248627,1.243379,1155.3,1153.0,0.55222739]
[1761573248925,1.243379,1155.6,1153.1,0.55222739]
[1761573249121,1.243379,1155.6,1153.2,0.55222739]
[1761573249326,1.243379,1155.6,1153.3,0.55222739]
[1761573249525,1.243379,1155.6,1153.4,0.55222739]
[1761573249726,1.243379,1155.6,1153.5,0.55222739]
[1761573249924,1.243379,1155.7,1153.6,0.55222739]
[1761573250125,1.243379,1155.7,1152.9,0.64425293]
[1761573250326,1.243379,1155.7,1153.0,1.19625488]
[1761573250525,1.243379,1155.0,1153.2,0.64425293]
[1761573250727,1.243379,1155.1,1153.3,1.19625488]
[1761573250922,1.243379,1155.1,1153.4,0.55200195]
[1761573251127,1.243379,1155.2,1153.5,0.55200195]
[1761573251329,1.243379,1155.2,1153.6,0.55200195]
[1761573251523,1.243379,1155.2,1153.7,0.55200195]
[1761573251725,1.243379,1155.1,1153.2,0.64425293]
[1761573251926,1.243379,1155.1,1153.3,1.19627497]
[1761573252126,1.243379,1155.1,1153.1,0.832926]
[1761573252326,1.243379,1155.1,1153.3,0.64629661]
[1761573252526,1.243379,1155.1,1153.4,0.55205663]
[1761573252728,1.243379,1155.1,1153.5,0.55205663]
[1761573252928,1.243379,1155.2,1153.6,0.55205663]
[1761573253129,1.243379,1155.2,1153.7,0.55205663]
[1761573253326,1.243379,1155.1,1153.3,0.64629661]
[1761573253628,1.243379,1155.1,1153.4,0.552206]
[1761573253929,1.243379,1155.1,1153.5,0.552206]
[1761573254230,1.243379,1155.1,1153.6,0.552206]
[1761573254427,1.243379,1155.1,1153.7,0.552206]
[1761573254631,1.243379,1155.1,1153.3,0.64629661]
[1761573254834,1.243379,1155.1,1153.4,1.19863201]
[1761573255035,1.243379,1155.1,1153.5,0.5523354]
[1761573255235,1.243379,1155.1,1153.6,0.5523354]
[1761573255434,1.243379,1155.1,1153.7,0.5523354]
[1761573255635,1.243379,1155.2,1153.8,0.55250832]
[1761573255934,1.243379,1155.2,1153.4,0.64629661]
[1761573256132,1.243379,1155.2,1153.5,0.55251002]
[1761573256331,1.243379,1155.2,1153.6,0.55251002]
[1761573256535,1.243379,1155.2,1153.7,0.55251002]
[1761573256735,1.243379,1155.2,1153.8,0.55251002]
[1761573257037,1.243379,1155.2,1153.4,0.64629661]
[1761573257237,1.243379,1155.3,1153.5,0.55258137]
[1761573257436,1.243379,1155.3,1153.6,0.55258137]
[1761573257732,1.243379,1155.2,1153.7,0.55258137]
[1761573257936,1.243379,1155.4,1153.8,0.55258137]
[1761573258136,1.243379,1155.5,1153.9,0.55258137]
[1761573258332,1.243379,1155.7,1154.0,0.55258137]
[1761573258536,1.243379,1155.7,1154.1,0.55258137]
[1761573258738,1.243379,1155.7,1154.2,0.55258137]
[1761573258932,1.243379,1155.9,1154.3,0.55258137]
[1761573259133,1.243379,1156.0,1154.4,0.55258137]
[1761573259335,4.1668079,1157.1,1154.5,0.55185773]
[1761573259531,1.243379,1157.2,1154.7,0.64629661]
[1761573259731,2.0962383,1159.6,1154.7,0.64629661]
[1761573259732,1.243379,1157.1,1154.8,0.55185773]
[1761573259933,1.243379,1156.6,1154.9,0.55185773]
[1761573260137,1.243379,1156.6,1155.0,0.55185773]
[1761573260433,1.243379,1156.6,1154.2,1.249389]
[1761573260434,1.243379,1156.7,1154.6,0.64629661]
[1761573260635,1.243379,1157.0,1154.7,0.55057925]
[1761573260836,1.243379,1157.0,1154.8,0.55057925]
[1761573261033,1.243379,1157.1,1154.9,0.55057925]
[1761573261233,1.243379,1157.1,1155.0,0.55057925]
[1761573261435,1.243379,1157.2,1154.4,0.64629661]
[1761573261635,1.243379,1157.3,1154.5,0.54588824]
[1761573261840,1.243379,1157.3,1154.6,0.54588824]
[1761573262040,1.243379,1157.3,1154.7,0.54588824]
[1761573262240,1.243379,1157.4,1154.8,0.54588824]
[1761573262440,1.243379,1157.4,1154.9,0.54588824]
[1761573262641,1.243379,1157.4,1154.3,0.64629661]
[1761573262842,1.243379,1156.9,1154.4,0.5435061]
[1761573263041,1.243379,1156.7,1154.5,0.5435061]
[1761573263238,1.243379,1156.3,1154.0,0.64629661]
[1761573263542,1.243379,1156.6,1154.1,0.54339418]
[1761573263843,1.243379,1156.6,1154.2,0.54339418]
[1761573264041,1.243379,1156.6,1154.3,0.54339418]
[1761573264242,1.243379,1156.6,1154.4,0.54339418]
[1761573264543,1.243379,1156.6,1153.9,0.64629661]
[1761573264838,1.243379,1156.6,1154.0,0.54319928]
[1761573265038,1.243379,1156.4,1154.1,0.54319928]
[1761573265243,1.243379,1156.4,1153.6,0.64629661]
[1761573265442,1.243379,1156.4,1153.7,0.54321364]
[1761573265638,1.243379,1156.4,1153.8,0.54321364]
[1761573265843,1.243379,1156.4,1153.9,0.54321364]
[1761573266043,1.243379,1156.4,1154.0,0.54321364]
[1761573266242,1.243379,1156.5,1154.1,0.54321364]
[1761573266445,1.243379,1156.5,1153.6,0.64629661]
[1761573266745,1.243379,1156.5,1153.7,0.54314756]
[1761573267041,1.243379,1156.9,1153.8,0.54314756]
[1761573267244,1.243379,1156.9,1153.9,0.54314756]
[1761573267545,1.243379,1156.9,1154.0,0.54314756]
[1761573267743,1.243379,1156.9,1154.1,0.54314756]
[1761573267944,1.243379,1156.9,1154.2,0.54314756]
[1761573268145,1.243379,1156.9,1153.5,0.64629661]
[1761573268441,1.243379,1156.9,1153.6,0.54305233]
[1761573268741,1.243379,1156.1,1153.7,0.54305233]
[1761573269041,1.243379,1156.1,1153.8,0.54305233]
[1761573269245,1.243379,1156.0,1153.9,0.54305233]
[1761573269442,1.243379,1156.1,1153.3,0.64629661]
[1761573269746,1.243379,1156.1,1152.7,1.249389]
[1761573269747,1.243379,1156.3,1153.4,0.54314712]
[1761573269944,1.243379,1156.4,1153.5,0.54314712]
[1761573270144,1.243379,1156.4,1153.6,0.54314712]
[1761573270348,1.243379,1156.3,1153.7,0.54314712]
[1761573270545,1.243379,1156.2,1153.8,0.54314712]
[1761573270747,1.243379,1156.2,1153.2,0.64629661]
[1761573270948,1.243379,1156.2,1153.3,0.54312981]
[1761573271248,1.243379,1156.3,1153.4,0.54312981]
[1761573271547,1.243379,1156.2,1153.5,0.54312981]
[1761573271745,1.243379,1156.4,1153.6,0.54312981]
[1761573272048,1.243379,1156.4,1153.7,0.54312981]
[1761573272249,1.243379,1156.4,1153.8,0.54312981]
[1761573272544,1.243379,1156.4,1153.9,0.54312981]
[1761573272749,1.243379,1156.4,1153.3,0.64629661]
[1761573272946,1.243379,1156.5,1153.4,0.54308962]
[1761573273246,1.243379,1156.4,1153.5,0.54308962]
[1761573273445,1.243379,1155.9,1153.6,0.54308962]
[1761573273649,1.243379,1156.9,1153.7,0.54308962]
[1761573273850,1.243379,1156.9,1153.8,0.54308962]
[1761573274150,1.243379,1156.9,1153.9,0.54308962]
[1761573274351,1.243379,1156.9,1154.0,0.54308962]
[1761573274552,1.243379,1156.9,1153.3,0.64629661]
[1761573274748,1.243379,1156.6,1153.4,1.18935275]
[1761573274952,1.243379,1156.6,1153.5,1.18935275]
[1761573275152,1.243379,1156.6,1153.6,0.54305614]
[1761573275353,1.243379,1156.6,1153.7,0.54305614]
[1761573275553,1.243379,1156.6,1153.8,0.54305614]
[1761573275753,1.243379,1156.6,1153.9,0.54305614]
[1761573276048,1.243379,1156.6,1154.0,0.54305614]
[1761573276252,1.243379,1156.6,1154.1,0.54299009]
[1761573276453,1.243379,1156.4,1153.5,0.64629661]
[1761573276749,1.243379,1156.2,1153.6,1.18928423]
[1761573276950,1.243379,1156.2,1153.7,0.54298762]
[1761573277149,1.243379,1156.2,1153.8,0.54298762]
[1761573277352,1.243379,1156.2,1153.9,0.54298762]
[1761573277653,1.243379,1156.2,1154.0,0.54298762]
[1761573277851,1.243379,1156.2,1153.6,0.64629661]
[1761573278050,1.243379,1156.2,1153.7,0.54294431]
[1761573278252,1.243379,1156.2,1153.8,0.54294431]
[1761573278449,1.243379,1156.2,1153.9,0.54294431]
[1761573278649,1.243379,1156.4,1154.0,0.54294431]
[1761573278948,1.243379,1156.5,1154.1,0.54294431]
[1761573279252,1.243379,1156.5,1153.7,0.64629661]
[1761573279453,1.243379,1156.5,1153.8,0.54285019]
[1761573279653,1.243379,1156.5,1153.9,0.54285019]
[1761573279853,1.243379,1156.5,1154.0,0.54285019]
[1761573280050,1.243379,1156.5,1154.1,0.54285019]
[1761573280251,1.243379,1156.5,1154.2,0.54285019]
[1761573280454,1.243379,1156.5,1153.7,0.64629661]
[1761573280657,1.243379,1156.5,1153.8,0.54281618]
[1761573280857,1.243379,1156.4,1153.9,1.18911279]
[1761573281054,1.243379,1156.4,1154.0,0.54281618]
[1761573281257,1.243379,1156.5,1154.1,0.54281618]
[1761573281455,1.243379,1156.5,1154.2,0.54281618]
[1761573281659,1.243379,1156.6,1154.3,0.54281618]
[1761573281955,1.243379,1156.6,1154.4,0.54281618]
[1761573282158,1.243379,1156.6,1154.0,0.64629661]
[1761573282356,1.243379,1156.6,1154.1,0.54248575]
[1761573282561,1.243379,1156.6,1154.2,0.54248575]
[1761573282860,1.243379,1156.8,1154.3,0.54248575]
[1761573283160,1.243379,1156.8,1154.4,0.54248575]
[1761573283356,1.243379,1156.9,1154.5,0.54248575]
[1761573283557,1.243379,1156.9,1154.0,0.64629661]
[1761573283756,1.243379,1156.9,1154.1,0.54230948]
[1761573283956,1.243379,1156.8,1154.2,0.54230948]
[1761573284160,1.243379,1156.8,1154.3,0.54230948]
[1761573284459,1.243379,1156.9,1154.4,0.54230948]
[1761573284659,1.243379,1156.6,1154.0,0.64629661]
[1761573284860,1.243379,1156.6,1154.1,0.54219756]
[1761573285059,1.243379,1156.6,1154.2,0.54219756]
[1761573285256,1.243379,1156.6,1154.3,0.54219756]
[1761573285461,1.243379,1156.7,1154.4,0.54210349]
[1761573285659,1.243379,1156.7,1154.0,0.64629661]
[1761573285855,1.243379,1156.7,1154.1,0.54210107]
[1761573286157,1.243379,1156.8,1154.2,0.54210107]
[1761573286357,1.243379,1156.8,1154.3,0.54210107]
[1761573286556,1.243379,1156.8,1154.4,0.54210107]
[1761573286757,1.243379,1156.8,1154.0,0.64629661]
[1761573286957,1.243379,1156.8,1154.1,0.54203122]
[1761573287262,1.243379,1156.9,1154.2,0.54203122]
[1761573287764,1.243379,1157.0,1154.3,1.18832783]
[1761573287963,1.243379,1157.0,1154.4,0.54203122]
[1761573288159,1.243379,1157.0,1154.5,0.54203122]
[1761573288361,1.243379,1157.0,1154.6,0.54203122]
[1761573288563,1.243379,1157.0,1154.7,0.54203122]
[1761573288760,1.243379,1157.0,1154.3,0.64629661]
[1761573288959,1.243379,1157.0,1154.4,0.54168034]
[1761573289159,1.243379,1156.9,1154.5,0.54168034]
[1761573289459,1.243379,1156.9,1154.3,0.64629661]
[1761573289460,1.243379,1157.0,1154.6,0.54168034]
[1761573289664,1.243379,1157.0,1154.3,0.64629661]
[1761573289961,1.243379,1157.1,1154.4,0.54158322]
[1761573290260,1.243379,1157.1,1154.5,0.54158322]
[1761573290461,1.243379,1157.1,1154.6,0.54158322]
[1761573290660,1.243379,1157.1,1154.2,0.64629661]
[1761573290860,1.243379,1157.1,1154.3,0.54147191]
[1761573291163,1.243379,1157.1,1154.4,0.54147191]
[1761573291364,1.243379,1157.1,1154.5,0.54147191]
[1761573291665,1.243379,1157.2,1154.6,0.54147191]
[1761573291863,1.243379,1157.2,1154.2,0.64629661]
[1761573292063,1.243379,1157.2,1154.3,0.54136322]
[1761573292263,1.243379,1157.1,1154.4,0.54136322]
[1761573292462,1.243379,1157.1,1154.5,0.54136322]
[1761573292765,1.243379,1156.8,1154.1,0.64629661]
[1761573292965,1.243379,1156.7,1154.2,0.5411656]
[1761573293165,1.243379,1156.9,1154.3,0.5411656]
[1761573293365,1.243379,1156.6,1153.6,0.64629661]
[1761573293564,1.243379,1156.6,1153.7,0.54127969]
[1761573293766,1.243379,1156.6,1153.8,0.54127969]
[1761573293966,1.243379,1156.7,1153.9,0.54127969]
[1761573294164,1.243379,1156.7,1154.0,0.54127969]
[1761573294367,1.243379,1156.7,1154.1,0.54127969]
[1761573294664,1.243379,1156.7,1153.6,0.64629661]
[1761573294863,1.243379,1156.7,1153.7,0.53952015]
[1761573295067,1.243379,1156.7,1153.8,0.53952015]
[1761573295267,1.243379,1156.7,1153.6,0.64629661]
[1761573295268,1.243379,1156.7,1153.9,0.53952015]
[1761573295462,1.243379,1156.7,1154.0,0.53952015]
[1761573295665,1.243379,1156.7,1154.1,0.53952015]
[1761573295963,1.243379,1156.7,1152.1,2.082315]
[1761573295964,1.243379,1156.8,1154.2,0.53952015]
[1761573296168,1.243379,1156.8,1153.8,0.64629661]
[1761573296367,1.243379,1156.8,1153.9,0.53954326]
[1761573296567,1.243379,1156.8,1154.0,0.53954326]
[1761573296767,1.243379,1156.9,1154.1,0.53954326]
[1761573296965,1.243379,1156.9,1154.2,0.53954326]
[1761573297166,1.243379,1156.9,1153.8,0.64629661]
[1761573297167,1.243379,1156.9,1154.3,0.53954326]
[1761573297366,1.243379,1156.9,1153.8,0.64629661]
[1761573297568,1.243379,1157.0,1153.9,1.18583535]
[1761573297768,1.243379,1157.0,1154.0,0.53953874]
[1761573297970,1.243379,1156.9,1154.1,0.64629661]
[1761573298171,1.243379,1156.8,1154.2,0.53953874]
[1761573298369,1.243379,1157.0,1154.3,1.18583535]
[1761573298673,1.243379,1157.4,1154.4,0.53953874]
[1761573298869,1.243379,1156.8,1154.0,0.64629661]
[1761573299067,1.243379,1156.8,1154.1,0.53949099]
[1761573299270,1.243379,1156.7,1154.2,0.53949099]
[1761573299472,1.243379,1156.7,1154.3,0.53949099]
[1761573299773,1.243379,1156.7,1153.9,0.64629661]
[1761573300073,1.243379,1156.7,1154.0,0.53957031]
[1761573300273,1.243379,1156.7,1154.1,0.53957031]
[1761573300473,1.243379,1156.7,1154.2,0.53957031]
[1761573300677,1.243379,1156.7,1154.3,0.53957031]
[1761573300973,1.243379,1156.7,1153.9,0.64629661]
[1761573301173,1.243379,1156.7,1154.0,0.53956492]
[1761573301374,1.243379,1157.0,1154.1,0.53956492]
[1761573301670,1.243379,1156.9,1154.2,0.53956492]
[1761573301972,1.243379,1156.9,1154.3,0.53956492]
[1761573302172,1.243379,1156.9,1154.4,0.53956492]
[1761573302373,1.243379,1156.9,1154.0,0.64629661]
[1761573302669,1.243379,1156.9,1154.1,0.53968905]
[1761573302869,1.243379,1156.9,1154.2,0.53968905]
[1761573303073,1.243379,1156.9,1154.3,0.53968905]
[1761573303375,1.243379,1157.0,1154.4,0.53968905]
[1761573303574,1.243379,1157.0,1154.0,0.64629661]
[1761573303771,1.243379,1157.0,1154.1,0.53986163]
[1761573304276,1.243379,1156.9,1154.1,0.53986163]
[1761573304776,1.243379,1157.0,1154.1,0.53986163]
[1761573304976,1.243379,1157.2,1154.2,0.53986163]
[1761573305276,1.243379,1157.2,1154.3,0.53986163]
[1761573305477,1.243379,1157.2,1154.4,0.53986163]
[1761573305772,1.243379,1157.2,1154.5,0.53986163]